bitfinex/quotes_SOLUSD_20250802
["timestamp","ask_amount","ask_price","bid_price","bid_amount"]
[1754134553842,43.56,164.86,164.85,11.26811825]
[1754134556161,43.56,164.86,164.85,5.98]
[1754134556346,43.56,164.86,164.85,11.26811825]
[1754134563551,43.56,164.86,164.85,11.24811825]
[1754134568690,0.03,164.88,164.86,5.96]
[1754134568971,0.03,164.88,164.87,11.24811825]
[1754134569352,0.75,164.88,164.87,11.24811825]
[1754134569979,0.03,164.88,164.87,11.24811825]
[1754134570185,16.78468397,164.87,164.85,5.96]
[1754134570473,190.36,164.86,164.84,5.96]
[1754134570672,189.64,164.86,164.84,11.24811825]
[1754134570855,189.64,164.86,164.82,5.96]
[1754134570856,0.72,164.85,164.82,5.96]
[1754134571050,44.24,164.84,164.82,5.96]
[1754134571252,17.50468397,164.83,164.81,6.02]
[1754134571554,66.31280222,164.82,164.81,0.06]
[1754134572284,70.38848234,164.82,164.81,0.06]
[1754134573377,105.51962946,164.82,164.81,0.06]
[1754134573558,99.45240461,164.82,164.81,0.06]
[1754134573966,105.51962946,164.82,164.81,0.06]
[1754134574161,79.51962946,164.82,164.81,0.06]
[1754134575166,73.45240461,164.82,164.81,0.06]
[1754134575376,42.78468397,164.81,164.8,0.06]
[1754134575689,62.2568961,164.81,164.79,0.06]
[1754134575865,137.02677812,164.8,164.79,0.06]
[1754134576065,111.74677812,164.8,164.79,0.06]
[1754134576280,52.53247197,164.8,164.79,0.06]
[1754134576477,64.40036409,164.8,164.79,0.06]
[1754134577772,65.12036409,164.8,164.79,0.06]
[1754134580004,64.40036409,164.8,164.79,0.06]
[1754134580202,65.12036409,164.8,164.79,0.06]
[1754134581287,64.40036409,164.8,164.79,0.06]
[1754134581484,70.40848234,164.8,164.79,0.06]
[1754134586620,96.40848234,164.8,164.79,0.06]
[1754134586916,107.76456175,164.8,164.79,0.06]
[1754134587417,16.78468397,164.77,164.76,0.06]
[1754134587588,69.66848234,164.77,164.76,0.06]
[1754134587917,65.10036409,164.77,164.76,0.06]
[1754134588212,20.86036409,164.77,164.76,0.06]
[1754134588412,60.30468397,164.77,164.76,0.06]
[1754134588996,66.31280222,164.77,164.76,0.06]
[1754134589322,70.38243772,164.77,164.76,0.06]
[1754134589878,96.38243772,164.77,164.76,0.06]
[1754134590707,101.15157848,164.77,164.76,0.06]
[1754134591099,107.22064445,164.77,164.76,0.06]
[1754134591413,101.15157848,164.77,164.76,0.06]
[1754134591931,104.31658979,164.77,164.76,0.06]
[1754134594725,103.59658979,164.77,164.76,0.06]
[1754134594896,19.94969528,164.77,164.76,0.72]
[1754134595220,60.30468397,164.77,164.76,0.72]
[1754134595392,3.16464341,164.8,164.76,6.00811825]
[1754134595590,3.16464341,164.8,164.79,11.24811825]
[1754134595791,0.03,164.84,164.82,5.96]
[1754134595996,0.03,164.84,164.82,11.24811825]
[1754134595997,43.52,164.83,164.82,11.24811825]
[1754134596334,0.03,164.84,164.83,5.96]
[1754134596489,43.55,164.84,164.83,6.62]
[1754134596688,60.33468397,164.84,164.83,6.62]
[1754134596921,43.55,164.84,164.83,11.90811825]
[1754134598487,60.33468397,164.84,164.83,11.90811825]
[1754134598924,60.33468397,164.84,164.83,5.96]
[1754134599624,16.78468397,164.83,164.82,11.24811825]
[1754134600922,0.03,164.84,164.83,5.96]
[1754134601104,0.03,164.84,164.83,15.47142189]
[1754134601105,43.53,164.84,164.83,15.47142189]
[1754134601810,0.03,164.84,164.83,15.47142189]
[1754134602000,43.53,164.84,164.83,15.47142189]
[1754134602820,0.03,164.84,164.83,15.47142189]
[1754134604923,0.03,164.84,164.83,6.62]
[1754134605129,0.03,164.84,164.83,15.47142189]
[1754134606126,0.03,164.88,164.87,5.96]
[1754134606424,0.03,164.88,164.87,14.81142189]
[1754134606921,0.03,164.88,164.87,15.47142189]
[1754134608521,0.03,164.88,164.87,5.96]
[1754134608728,0.03,164.88,164.87,14.81142189]
[1754134609234,0.03,164.88,164.87,15.47142189]
[1754134610323,0.03,164.88,164.87,14.81142189]
[1754134610525,0.03,164.88,164.87,5.96]
[1754134610728,0.03,164.88,164.87,14.81142189]
[1754134610928,0.69,164.88,164.87,5.96]
[1754134611636,17.47468397,164.88,164.85,5.96]
[1754134611815,16.78468397,164.86,164.85,5.96]
[1754134612238,16.78468397,164.86,164.85,14.81142189]
[1754134613737,17.44468397,164.86,164.84,5.96]
[1754134613923,0.66,164.85,164.81,5.96]
[1754134614243,16.78468397,164.83,164.82,5.96]
[1754134614413,17.44468397,164.83,164.82,5.96]
[1754134614819,16.78468397,164.83,164.82,5.96]
[1754134615044,16.78468397,164.83,164.82,14.81142189]
[1754134615649,16.78468397,164.87,164.85,5.96]
[1754134615853,60.24468397,164.86,164.85,5.96]
[1754134616579,16.78468397,164.85,164.84,5.96]
[1754134616927,17.44468397,164.85,164.84,5.96]
[1754134618316,16.78468397,164.85,164.84,5.96]
[1754134619838,16.78468397,164.85,164.84,14.81142189]
[1754134620029,16.78468397,164.85,164.83,5.96]
[1754134620030,17.44468397,164.85,164.83,5.96]
[1754134620219,16.78468397,164.83,164.82,5.96]
[1754134620418,17.44468397,164.83,164.82,5.96]
[1754134620838,16.78468397,164.83,164.82,5.96]
[1754134621040,16.78468397,164.83,164.82,14.81142189]
[1754134622848,17.49468397,164.83,164.82,14.81142189]
[1754134623049,16.78468397,164.83,164.82,14.81142189]
[1754134623433,16.78468397,164.83,164.82,15.52142189]
[1754134624071,16.78468397,164.83,164.82,5.96]
[1754134624350,17.49468397,164.83,164.82,5.96]
[1754134624543,16.78468397,164.83,164.82,14.81142189]
[1754134624738,16.78468397,164.83,164.82,5.96]
[1754134624943,16.78468397,164.83,164.82,11.27294799]
[1754134625148,17.49468397,164.83,164.82,5.96]
[1754134625334,17.49468397,164.83,164.81,11.27294799]
[1754134625538,60.24468397,164.82,164.81,5.96]
[1754134626730,60.24468397,164.82,164.81,11.27294799]
[1754134626939,60.24468397,164.82,164.81,11.98294799]
[1754134627774,43.46,164.82,164.81,11.98294799]
[1754134628256,43.46,164.82,164.81,11.27294799]
[1754134629154,60.95468397,164.82,164.81,5.96]
[1754134629356,16.78468397,164.81,164.8,5.96]
[1754134629658,16.78468397,164.81,164.8,11.27294799]
[1754134632255,60.24468397,164.82,164.81,5.96]
[1754134632549,60.24468397,164.82,164.81,11.27294799]
[1754134632752,43.46,164.82,164.81,11.27294799]
[1754134632971,43.46,164.82,164.81,11.98294799]
[1754134635529,43.46,164.82,164.81,11.27294799]
[1754134635963,60.24468397,164.82,164.81,5.96]
[1754134636153,60.95468397,164.82,164.81,11.27294799]
[1754134636485,60.24468397,164.82,164.81,11.27294799]
[1754134636641,60.95468397,164.82,164.81,11.27294799]
[1754134637245,16.81468397,164.84,164.83,5.96]
[1754134637452,60.25468397,164.84,164.83,11.27294799]
[1754134639160,0.03,164.84,164.83,11.98294799]
[1754134640054,0.03,164.84,164.83,6.67]
[1754134640261,0.03,164.84,164.83,11.98294799]
[1754134640851,0.03,164.86,164.85,5.96]
[1754134641068,0.03,164.86,164.85,11.27294799]
[1754134641441,0.03,164.86,164.85,11.98294799]
[1754134642971,0.03,164.86,164.85,11.27294799]
[1754134643473,0.03,164.86,164.85,11.98294799]
[1754134646590,0.03,164.88,164.87,5.96]
[1754134646775,0.03,164.88,164.87,16.58589598]
[1754134648554,0.03,164.88,164.87,11.27294799]
[1754134648875,0.03,164.88,164.87,5.96]
[1754134649064,0.74,164.88,164.87,11.27294799]
[1754134650554,17.52468397,164.88,164.87,5.96]
[1754134650777,17.52468397,164.88,164.87,11.27294799]
[1754134652670,16.81468397,164.88,164.87,11.27294799]
[1754134652870,0.03,164.88,164.87,11.27294799]
[1754134653251,0.03,164.88,164.87,17.28589598]
[1754134653457,0.03,164.9,164.89,31.96]
[1754134653760,60.21468397,164.95,164.94,5.96]
[1754134654056,60.21468397,164.95,164.94,11.27294799]
[1754134654255,60.91468397,164.95,164.94,11.27294799]
[1754134655551,60.91468397,164.95,164.94,5.96]
[1754134655787,60.91468397,164.95,164.94,11.27294799]
[1754134656786,16.78468397,164.94,164.93,5.96]
[1754134656979,17.48468397,164.94,164.93,5.96]
[1754134658260,17.48468397,164.94,164.92,5.96]
[1754134658479,16.78468397,164.92,164.91,5.96]
[1754134658780,60.88468397,164.92,164.91,5.96]
[1754134659770,59.38468397,164.92,164.91,5.96]
[1754134660484,15.28468397,164.92,164.91,11.27294799]
[1754134660676,58.68468397,164.92,164.91,11.27294799]
[1754134661171,15.28468397,164.92,164.91,11.27294799]
[1754134661483,58.68468397,164.92,164.91,11.27294799]
[1754134662582,58.66468397,164.92,164.91,11.27294799]
[1754134662965,15.28468397,164.92,164.91,11.27294799]
[1754134663276,58.66468397,164.92,164.91,11.27294799]
[1754134663988,59.36468397,164.92,164.91,11.27294799]
[1754134664362,59.36468397,164.92,164.91,5.96]
[1754134664564,59.36468397,164.92,164.89,5.96]
[1754134664788,16.78468397,164.9,164.89,11.27294799]
[1754134665064,60.16468397,164.9,164.89,11.27294799]
[1754134667166,60.86468397,164.9,164.89,11.27294799]
[1754134667674,60.86468397,164.9,164.89,5.96]
[1754134667864,60.86468397,164.9,164.88,11.27294799]
[1754134668064,60.16468397,164.9,164.88,11.27294799]
[1754134668310,17.48468397,164.89,164.88,5.96]
[1754134668471,16.78468397,164.88,164.87,11.27294799]
[1754134668670,60.16468397,164.88,164.87,11.27294799]
[1754134669977,43.38,164.88,164.87,11.27294799]
[1754134670281,43.38,164.88,164.87,11.97294799]
[1754134671094,17.48468397,164.92,164.88,5.96]
[1754134671095,43.38,164.89,164.88,5.96]
[1754134671297,43.38,164.89,164.88,11.27294799]
[1754134672278,146.1,164.93,164.9,5.96]
[1754134672476,162.88468397,164.93,164.92,11.27294799]
[1754134672672,206.26468397,164.93,164.92,11.27294799]
[1754134673383,189.48,164.93,164.92,11.27294799]
[1754134673576,206.26468397,164.93,164.92,11.27294799]
[1754134673978,206.26468397,164.93,164.92,5.96]
[1754134674184,206.26468397,164.93,164.92,11.27294799]
[1754134676093,43.38,164.93,164.92,11.97294799]
[1754134676297,0.03,164.95,164.94,5.96]
[1754134676476,60.17468397,164.95,164.94,5.96]
[1754134676673,64.25334036,164.95,164.94,5.96]
[1754134676877,60.17468397,164.95,164.94,11.27294799]
[1754134677186,43.39,164.95,164.94,11.27294799]
[1754134677586,43.39,164.95,164.94,11.97294799]
[1754134678002,0.03,164.95,164.94,11.97294799]
[1754134679383,0.03,164.95,164.94,11.27294799]
[1754134679582,0.73,164.95,164.94,11.27294799]
[1754134680174,0.73,164.95,164.94,5.96]
[1754134680175,17.51468397,164.95,164.94,5.96]
[1754134680373,17.51468397,164.95,164.94,11.27294799]
[1754134680374,16.81468397,164.95,164.94,11.27294799]
[1754134681414,0.03,164.95,164.94,11.27294799]
[1754134681592,0.03,164.95,164.94,11.99294799]
[1754134683617,0.03,164.97,164.94,17.30589598]
[1754134683908,0.03,164.97,164.96,16.58589598]
[1754134684507,0.03,164.97,164.96,17.30589598]
[1754134684879,0.03,164.97,164.96,11.27294799]
[1754134685380,44.09,164.97,164.96,5.96]
[1754134685620,44.09,164.97,164.96,11.27294799]
[1754134685924,60.87468397,164.97,164.96,11.27294799]
[1754134686101,16.78468397,164.96,164.95,11.27294799]
[1754134686296,17.50468397,164.96,164.95,5.96]
[1754134686708,17.50468397,164.96,164.94,11.27294799]
[1754134686905,0.03,164.97,164.95,5.96]
[1754134687211,4.10980692,164.97,164.96,5.96]
[1754134687419,4.82980692,164.97,164.96,5.96]
[1754134687583,0.75,164.97,164.96,5.96]
[1754134687898,44.09,164.97,164.96,5.96]
[1754134688098,48.16980692,164.97,164.96,5.96]
[1754134688814,60.87468397,164.97,164.96,5.96]
[1754134689004,16.78468397,164.96,164.95,5.96]
[1754134689511,21.5854429,164.96,164.93,5.96]
[1754134689720,5.34294799,164.97,164.95,5.96]
[1754134689919,60.12468397,164.96,164.95,5.96]
[1754134690095,69.5184965,164.96,164.92,5.96]
[1754134690291,16.78468397,164.94,164.93,5.96]
[1754134690493,64.20612191,164.94,164.91,5.96]
[1754134690796,22.09763196,164.92,164.88,5.96]
[1754134691108,16.78468397,164.9,164.88,5.96]
[1754134691287,16.78468397,164.88,164.87,6.02]
[1754134691803,17.50468397,164.88,164.87,6.02]
[1754134695915,17.50468397,164.88,164.87,11.33294799]
[1754134696220,17.50468397,164.88,164.87,6.02]
[1754134697702,16.78468397,164.88,164.87,6.02]
[1754134698520,17.50468397,164.88,164.87,6.02]
[1754134698821,16.78468397,164.88,164.87,6.02]
[1754134701523,17.50468397,164.88,164.87,6.02]
[1754134702792,17.50468397,164.88,164.87,0.06]
[1754134703108,17.50468397,164.88,164.87,6.02]
[1754134706022,16.78468397,164.88,164.87,6.02]
[1754134706526,17.50468397,164.88,164.87,6.02]
[1754134709409,5.09272782,164.94,164.93,5.96]
[1754134709607,0.03,164.97,164.94,5.96]
[1754134709927,3.1941734,164.97,164.94,17.30589598]
[1754134710226,0.03,164.97,164.94,11.99294799]
[1754134710699,0.03,164.97,164.94,6.68]
[1754134710899,60.13468397,164.97,164.94,5.96]
[1754134711132,60.13468397,164.97,164.94,11.27294799]
[1754134712530,60.13468397,164.97,164.94,11.94294799]
[1754134713232,0.03,164.97,164.94,17.25589598]
[1754134713543,0.1,165.05,164.98,5.96]
[1754134713732,0.1,165.05,165.04,16.58589598]
[1754134714218,0.1,165.05,165.04,17.25589598]
[1754134719619,0.1,165.05,165.04,16.58589598]
[1754134722233,0.1,165.05,165.04,17.25589598]
[1754134723719,0.1,165.05,165.04,16.58589598]
[1754134725406,0.1,165.05,165.04,11.27294799]
[1754134725844,0.1,165.05,165.04,16.58589598]
[1754134727112,0.1,165.05,165.04,5.96]
[1754134727319,0.79,165.05,165.04,11.27294799]
[1754134727636,0.1,165.05,165.04,11.27294799]
[1754134727817,0.1,165.05,165.04,16.58589598]
[1754134729042,0.1,165.05,165.04,17.25589598]
[1754134729623,0.03,165.07,165.06,11.27294799]
[1754134729821,0.1,165.09,165.08,5.96]
[1754134730139,0.1,165.09,165.08,11.27294799]
[1754134731034,0.1,165.09,165.08,11.94294799]
[1754134731540,0.1,165.12,165.1,5.96]
[1754134731744,0.1,165.12,165.1,11.27294799]
[1754134732330,0.1,165.12,165.1,17.25589598]
[1754134733725,0.1,165.12,165.1,16.58589598]
[1754134734431,0.1,165.12,165.1,11.27294799]
[1754134734831,0.1,165.12,165.1,16.58589598]
[1754134735438,0.1,165.12,165.1,17.19158949]
[1754134735723,0.1,165.12,165.1,17.25589598]
[1754134736438,0.1,165.12,165.11,16.58589598]
[1754134736950,0.1,165.12,165.11,17.25589598]
[1754134737256,43.95,165.17,165.11,17.25589598]
[1754134737424,43.95,165.17,165.16,5.31294799]
[1754134738456,43.95,165.17,165.16,11.27294799]
[1754134739942,43.95,165.17,165.16,5.96]
[1754134740327,43.95,165.17,165.16,11.27294799]
[1754134741128,43.95,165.17,165.15,5.96]
[1754134741340,60.04468397,165.17,165.16,5.96]
[1754134741550,43.26,165.17,165.16,11.27294799]
[1754134741860,16.78468397,165.16,165.15,5.96]
[1754134742041,17.49468397,165.16,165.15,5.96]
[1754134742241,0.71,165.16,165.15,5.96]
[1754134742428,0.71,165.16,165.15,11.27294799]
[1754134742628,43.26,165.17,165.16,5.96]
[1754134742954,43.26,165.17,165.16,11.27294799]
[1754134743327,43.97,165.17,165.16,11.27294799]
[1754134745356,43.26,165.17,165.16,11.27294799]
[1754134745537,0.03,165.19,165.18,5.96]
[1754134745739,0.03,165.19,165.18,11.27294799]
[1754134746543,0.74,165.19,165.18,11.27294799]
[1754134746745,0.03,165.19,165.18,11.27294799]
[1754134749350,0.03,165.19,165.18,11.99294799]
[1754134751445,0.03,165.19,165.18,17.30589598]
[1754134752346,0.03,165.19,165.18,5.96]
[1754134752654,0.74,165.19,165.18,11.27294799]
[1754134752958,0.03,165.19,165.18,11.27294799]
[1754134753160,0.74,165.19,165.18,11.27294799]
[1754134754168,0.03,165.19,165.18,11.27294799]
[1754134755138,0.74,165.19,165.18,11.27294799]
[1754134755566,0.03,165.19,165.18,11.27294799]
[1754134756272,0.03,165.19,165.18,5.96]
[1754134756453,0.03,165.19,165.18,11.27294799]
[1754134761475,0.74,165.19,165.18,11.27294799]
[1754134763679,0.74,165.19,165.18,5.96]
[1754134768081,0.03,165.19,165.18,11.99294799]
[1754134768288,0.03,165.19,165.18,11.27294799]
[1754134769672,0.74,165.19,165.18,5.96]
[1754134769876,0.74,165.19,165.18,11.27294799]
[1754134770493,0.74,165.19,165.18,5.96]
[1754134770694,0.74,165.19,165.18,11.27294799]
[1754134770896,0.74,165.19,165.18,5.96]
[1754134771709,0.73,165.19,165.18,5.96]
[1754134772817,0.03,165.19,165.18,11.27294799]
[1754134773172,0.73,165.19,165.18,5.96]
[1754134777770,22.82763196,165.19,165.17,5.96]
[1754134777975,4.77388139,165.18,165.17,5.96]
[1754134778604,10.08682938,165.18,165.17,5.96]
[1754134778902,4.77388139,165.18,165.17,5.96]
[1754134779998,26.87151335,165.18,165.17,5.96]
[1754134780182,26.87151335,165.18,165.15,5.96]
[1754134780183,16.78468397,165.17,165.15,5.96]
[1754134780380,47.23814205,165.16,165.15,5.96]
[1754134780592,47.93814205,165.16,165.15,5.96]
[1754134781007,53.25109004,165.16,165.15,5.96]
[1754134781614,47.93814205,165.16,165.15,5.96]
[1754134785507,16.78468397,165.15,165.14,5.96]
[1754134785816,26.87577401,165.15,165.13,5.96]
[1754134785992,4.77814205,165.14,165.13,5.96]
[1754134786384,10.09109004,165.14,165.13,5.96]
[1754134787000,21.56282602,165.14,165.13,5.96]
[1754134788607,26.87577401,165.14,165.12,6.02]
[1754134788817,22.09763196,165.14,165.12,6.02]
[1754134788990,43.16,165.13,165.12,6.02]
[1754134789314,47.23198772,165.13,165.12,6.02]
[1754134789510,53.24493571,165.13,165.12,6.02]
[1754134789717,47.93198772,165.13,165.12,6.02]
[1754134791896,47.93198772,165.13,165.12,0.06]
[1754134792191,70.02961968,165.13,165.12,0.06]
[1754134792393,16.78468397,165.11,165.1,0.06]
[1754134792589,69.30961968,165.11,165.1,0.06]
[1754134792902,43.14,165.11,165.1,6.02]
[1754134793687,43.84,165.11,165.1,6.02]
[1754134795100,65.93763196,165.11,165.1,0.06]
[1754134795312,65.93763196,165.11,165.1,6.02]
[1754134795505,65.93763196,165.11,165.1,0.06]
[1754134796093,65.93763196,165.11,165.1,6.02]
[1754134796598,70.00295473,165.11,165.1,6.02]
[1754134797898,43.14,165.11,165.1,6.02]
[1754134798613,49.15294799,165.11,165.1,6.02]
[1754134798803,70.00208439,165.11,165.1,0.06]
[1754134800618,64.6891364,165.11,165.1,0.06]
[1754134800822,70.00208439,165.11,165.1,0.06]
[1754134801393,64.6891364,165.11,165.1,0.06]
[1754134801628,63.9891364,165.11,165.1,0.06]
[1754134803008,69.95208439,165.11,165.1,0.06]
[1754134803805,63.9891364,165.11,165.1,0.06]
[1754134804632,69.95208439,165.11,165.1,0.06]
[1754134808806,76.00865273,165.11,165.1,0.06]
[1754134809640,79.0935945,165.11,165.1,0.06]
[1754134810917,69.95208439,165.11,165.1,0.06]
[1754134811229,69.30208439,165.11,165.1,0.06]
[1754134811609,95.95208439,165.11,165.1,0.06]
[1754134813317,95.30208439,165.11,165.1,0.06]
[1754134814407,89.9891364,165.11,165.1,0.06]
[1754134814601,63.9891364,165.11,165.1,6.02]
[1754134815045,63.9891364,165.11,165.1,6.7]
[1754134816212,43.14,165.11,165.1,6.7]
[1754134817209,47.2062761,165.11,165.1,6.7]
[1754134818440,25.25937764,165.13,165.12,5.96]
[1754134818441,3.16174568,165.13,165.12,5.96]
[1754134818608,0.03,165.14,165.13,5.96]
[1754134818812,43.15,165.14,165.13,6.64]
[1754134819229,43.15,165.14,165.13,5.96]
[1754134819441,47.21864673,165.14,165.13,5.96]
[1754134819820,16.78468397,165.13,165.1,0.06]
[1754134820039,5.31294799,165.11,165.1,0.06]
[1754134820251,9.38222937,165.11,165.1,0.06]
[1754134820544,26.81691334,165.11,165.1,0.06]
[1754134823853,32.87348168,165.11,165.1,0.06]
[1754134824173,37.9662095,165.11,165.1,0.06]
[1754134826146,42.78468397,165.09,165.08,0.06]
[1754134826347,95.28691334,165.09,165.08,0.06]
[1754134826639,95.93691334,165.09,165.08,0.06]
[1754134826874,101.03499392,165.09,165.08,0.06]
[1754134827506,95.93691334,165.09,165.08,0.06]
[1754134828292,101.99421541,165.09,165.08,0.06]
[1754134828498,101.99421541,165.09,165.01,6.64]
[1754134828499,16.78468397,165.08,165.01,6.64]
[1754134828672,22.09763196,165.03,165.02,5.96]
[1754134828867,69.26691334,165.03,165.02,5.96]
[1754134829802,69.26691334,165.03,165.0,5.96]
[1754134829803,16.78468397,165.02,165.0,5.96]
[1754134830015,43.1,165.01,165.0,5.96]
[1754134830164,16.78468397,165.07,165.04,5.96]
[1754134830355,47.17961669,165.06,165.04,6.64]
[1754134830618,4.07961669,165.05,165.04,6.64]
[1754134832680,4.07961669,165.05,165.04,5.96]
[1754134833490,4.07961669,165.05,165.04,6.65]
[1754134833887,4.07961669,165.05,165.04,5.96]
[1754134835198,9.39256468,165.05,165.03,5.96]
[1754134835366,65.85763196,165.04,165.01,5.96]
[1754134835566,65.85763196,165.04,165.0,5.96]
[1754134835567,10.05256468,165.03,165.0,5.96]
[1754134835798,16.78468397,165.01,165.0,5.96]
[1754134836105,20.86430066,165.01,165.0,5.96]
[1754134836684,20.86430066,165.01,164.99,5.96]
[1754134836893,43.1,165.0,164.99,5.96]
[1754134837405,49.07294799,165.0,164.98,5.96]
[1754134838205,59.88468397,165.0,164.99,5.96]
[1754134838726,43.1,165.0,164.99,6.65]
[1754134840679,43.1,165.0,164.99,11.96294799]
[1754134841939,43.1,165.0,164.99,5.96]
[1754134843610,43.76,165.0,164.99,5.96]
[1754134843811,162.88468397,164.99,164.98,5.96]
[1754134844053,168.85763196,164.99,164.98,5.96]
[1754134845519,163.54468397,164.99,164.98,5.96]
[1754134845718,168.85763196,164.99,164.98,5.96]
[1754134846121,163.54468397,164.99,164.98,5.96]
[1754134847848,146.1,164.99,164.98,11.27294799]
[1754134848058,3.16446668,165.02,165.01,5.96]
[1754134848224,59.88468397,165.02,165.01,5.96]
[1754134848546,16.78468397,165.01,165.0,5.96]
[1754134848751,16.78468397,165.01,165.0,11.96294799]
[1754134848927,16.78468397,165.01,165.0,11.27294799]
[1754134849313,20.86068704,165.01,165.0,11.27294799]
[1754134849522,16.78468397,165.01,165.0,11.96294799]
[1754134850148,16.78468397,165.01,165.0,11.27294799]
[1754134850950,16.78468397,165.01,165.0,11.96294799]
[1754134851536,59.88468397,165.01,165.0,11.96294799]
[1754134851934,59.88468397,165.01,165.0,11.27294799]
[1754134852363,59.88468397,165.01,165.0,5.96]
[1754134852528,64.6207653,165.01,165.0,5.96]
[1754134852860,64.6207653,165.01,164.99,5.96]
[1754134853062,16.78468397,164.99,164.98,5.96]
[1754134853269,59.88468397,164.99,164.98,5.96]
[1754134853567,64.62104334,164.99,164.98,5.96]
[1754134854653,63.96104334,164.99,164.98,5.96]
[1754134855527,59.88468397,164.99,164.98,5.96]
[1754134855932,63.95944149,164.99,164.98,5.96]
[1754134856157,59.88468397,164.99,164.98,5.96]
[1754134857735,64.61862669,164.99,164.97,5.96]
[1754134857948,65.19763196,164.99,164.98,5.96]
[1754134858240,69.27192847,164.99,164.98,5.96]
[1754134858634,69.93192847,164.99,164.96,5.96]
[1754134858953,4.73429651,164.98,164.97,5.96]
[1754134859553,16.78468397,164.97,164.96,6.02]
[1754134859754,59.86468397,164.97,164.96,6.02]
[1754134859933,60.52468397,164.97,164.96,0.06]
[1754134860333,64.59817016,164.97,164.96,0.06]
[1754134860546,64.59817016,164.97,164.96,6.02]
[1754134861041,20.85817016,164.97,164.96,6.02]
[1754134861354,146.1,164.98,164.97,5.96]
[1754134861550,189.18,164.98,164.97,11.27294799]
[1754134861752,189.18,164.98,164.97,11.94294799]
[1754134862136,189.18,164.98,164.97,5.96]
[1754134862643,210.73886502,164.98,164.97,5.96]
[1754134862859,16.78468397,164.97,164.96,0.06]
[1754134863044,26.172112,164.97,164.96,0.06]
[1754134863245,26.872112,164.97,164.96,0.06]
[1754134865458,26.872112,164.97,164.96,6.02]
[1754134865975,26.872112,164.97,164.96,0.06]
[1754134866745,38.03265888,164.97,164.96,0.06]
[1754134867145,32.93382018,164.97,164.95,0.2]
[1754134867368,95.952112,164.96,164.95,0.2]
[1754134868085,52.872112,164.96,164.95,0.2]
[1754134868271,89.93916401,164.96,164.95,0.2]
[1754134868469,89.93916401,164.96,164.95,6.16]
[1754134870874,236.03916401,164.96,164.95,6.16]
[1754134871054,236.03916401,164.96,164.95,0.2]
[1754134871376,236.03916401,164.96,164.95,6.16]
[1754134871994,236.73916401,164.96,164.95,6.16]
[1754134872148,242.052112,164.96,164.95,0.2]
[1754134872342,99.11776191,164.96,164.95,0.2]
[1754134873761,93.80481392,164.96,164.95,0.2]
[1754134873963,99.11776191,164.96,164.95,0.2]
[1754134877080,79.17983756,164.96,164.95,0.2]
[1754134877246,73.11776191,164.96,164.95,0.2]
[1754134877876,67.80481392,164.96,164.95,0.2]
[1754134878193,79.17983756,164.96,164.95,0.2]
[1754134879280,73.11776191,164.96,164.95,0.2]
[1754134879713,79.17983756,164.96,164.95,0.2]
[1754134880003,84.27514029,164.96,164.95,0.2]
[1754134880203,86.70741629,164.96,164.95,0.2]
[1754134880574,84.27514029,164.96,164.95,0.2]
[1754134882685,162.62468397,164.94,164.93,0.2]
[1754134882882,215.092112,164.94,164.93,0.2]
[1754134883076,215.792112,164.94,164.93,0.2]
[1754134883503,221.85492271,164.94,164.93,0.2]
[1754134884990,76.01492271,164.94,164.93,0.2]
[1754134885508,81.11022544,164.94,164.93,0.2]